{"text_format":"1","workbook":"xlsx","n_sheets":1,"sheets":["Лист1"],"not_rendered":{"charts":0,"images":0,"macros":1,"external_links":0,"defined_names":0,"comments":0,"pivot_tables":0},"unopened":[],"bounds":{"document_bytes":16777216,"sheet_cells":100000,"rows_first":2000,"rows_last":500,"rows_between":2000,"halvings":0,"cell_chars":16384,"cell_head_chars":4096},"cells_cut":0,"cells_raw":0,"read":"whole","date_system":"1900"}

{"sheet":"Лист1","index":0,"n_rows":18,"n_cols":18,"rows_kept":18,"cut":false,"hidden":false,"merged":[[3,2,5,2],[3,3,5,3],[3,4,4,5],[3,7,3,8],[4,7,4,8]]}
[]
[null,null,null,null,"Смена, ч","Скорость по тверд покрытию, км/ч","Кол-во машин","Грузоподъемность, т",null,"Погрузка-разгрузка, ч"]
[null,null,null,null,10,60,8,19,null,0.6]
[null,"№","Объект ликвидации","Среднее расстояние от места производства работ до места выгрузки (км.) по твердому покрытию","Металлолом(тн.) / Количество рейсов в смену 10 часов.",null,null,"Мусор (тн.) /"]
[null,"п/п",null,null,null,null,null,"Количество рейсов в смену 10 часов.",null," рейсов в день ( 1 маш)","Кол-во маш","кол-во дней","Итоги: дни/машин - рейсы"]
[null,null,null,null,"тн.","рейсы",null,"тн.","рейсы"]
[null,"1.","Площадка для хранения оборудования",51,4.6760000000000002,1,null,0,0,{"$f":"ROUNDDOWN(E$3/(D7*2/F$3+J$3),0)","v":4},{"$f":"ROUNDUP(I7/J7,0)","v":0},0,{"$f":"Машино_Дни($G$3,J7,I7)","v":"0"}]
[null,"2.","Взлетно-посадочная полоса для вертолетов, площадь 1080,00 кв.м.",52,0,0,null,1354,{"$f":"ROUNDUP(H8/H$3,0)","v":72},4,{"$f":"IF(ROUNDUP(I8/J8,0)<=G$3,ROUNDUP(I8/J8,0),G$3)","v":8},{"$f":"ROUNDUP(I8/J8/K8,0)","v":3},{"$f":"Машино_Дни($G$3,J8,I8)","v":"2/8-4 +  1/2-4"}]
[null,"3.","Благоустройство площадки на УКПГ-5",51,33.991,2,null,495.6,27,4,{"$f":"IF(ROUNDUP(I9/J9,0)<=G$3,ROUNDUP(I9/J9,0),G$3)","v":7},1,{"$f":"Машино_Дни($G$3,J9,I9)","v":" 1/6-4; 1/1-3"}]
[null,"4.","БЛАГОУСТРОЙСТВО И ПОДГОТОВКА ТЕРРИТОРИИ",51,25.077999999999999,2,null,1184,{"$f":"ROUNDUP(H10/H$3,0)","v":63},4,{"$f":"IF(ROUNDUP(I10/J10,0)<=G$3,ROUNDUP(I10/J10,0),G$3)","v":8},2,"1/8-4 +  1/7-4; 1/1-3"]
[null,"5.","БЛАГОУСТРОЙСТВО ПЛОЩАДКИ НА ДКС-5",51,0,0,null,1406.4,{"$f":"ROUNDUP(H11/H$3,0)","v":75},{"$f":"ROUNDDOWN(E$3/(D11*2/F$3+J$3),0)","v":4},8,3,"2/8-4 +  1/2-4; 1/1-3",null,null,null,null,"может, как-то так"]
[]
[null,null,null,null,null,null,null,"Получается для перевозки 1406,4 т мусора необходимо все 6 машин"]
[null,null,null,null,null,null,null,"это займет 4 дня, но 3 дня будут работать все 6 по 4 рейса каждая"]
[null,null,null,{"$f":"MOD(2,1)","v":0},null,null,null,"а 4-й день одна машина сделает 3 рейса "]
[null,null,null,null,null,null,null,"6 маш умножить на 4 рейса равно 24 в день"]
[null,null,null,null,null,null,null,"24+24+24 =72, 75-72=3 рейса в четвертый день для одного авто."]
[null,null,null,null,null,null,null,"Как это расчитать, что 3 дня 6 машин по 4 рейса, а 4 -й 1 маш - 3 рейса"]